Departmental Area,Entity,Payment Date,Expense type,Expense Area,Supplier Name,Payment Reference,     Invoice Distribution Amount     ,Description,Supplier Type,Expenditure Type
UK Statistics Family,Office for National Statistics,03/01/2023,Surveys,Social Surveys Division,Natcen Social Research,251847,"7,078.28",Print and Post Services,Large,Programme Expenditure
UK Statistics Family,Office for National Statistics,03/01/2023,Exp - Purchase Of Goods/Services - Incentive Payments,Social Surveys Division,Natcen Social Research,251847,"30,294.60",Survey Response Incentive Vouchers,Large,Programme Expenditure
UK Statistics Family,Office for National Statistics,03/01/2023,Exp - Purchase Of Goods/Services - Contractors,Testing,La International,251854,"16,403.86",Information Management Services,SME,Programme Expenditure
UK Statistics Family,Office for National Statistics,03/01/2023,Exp - Purchase Of Goods/Services - Contractors,Testing,La International,251854,"3,317.65",Information Management Services,SME,Programme Expenditure
UK Statistics Family,Office for National Statistics,03/01/2023,Exp - Purchase Of Goods/Services - Contractors,Consultancy Management,La International,251854,"3,681.18",Information Management Services,SME,Programme Expenditure
UK Statistics Family,Office for National Statistics,03/01/2023,Exp - Purchase Of Goods/Services - Contractors,Data Architecture,La International,251854,"3,981.18",Information Management Services,SME,Programme Expenditure
UK Statistics Family,Office for National Statistics,03/01/2023,Exp - Purchase Of Goods/Services - Contractors,BUSINESS STRATEGY PERFORMANCE AND PMO,Parity Resources Limited,251861,"2,040.00",Information Management Services,Large,Programme Expenditure
UK Statistics Family,Office for National Statistics,03/01/2023,Exp - Purchase Of Goods/Services - Contractors,CDIO UNGP,Parity Resources Limited,251861,"4,600.50",Information Management Services,Large,Programme Expenditure
UK Statistics Family,Office for National Statistics,03/01/2023,Exp - Purchase Of Goods/Services - Contractors,Tech Delivery Next Gen IT And Infrastructure,Parity Resources Limited,251861,"8,421.00",Information Management Services,Large,Programme Expenditure
UK Statistics Family,Office for National Statistics,03/01/2023,Exp - Purchase Of Goods/Services - Contractors,IT Applications,Parity Resources Limited,251861,"18,853.20",Information Management Services,Large,Programme Expenditure
UK Statistics Family,Office for National Statistics,03/01/2023,"ICT Outsourcing, Maintenance And Support",IT Operations,BT PLC,251866,"36,308.88",Information Management Services,Large,Programme Expenditure
UK Statistics Family,Office for National Statistics,03/01/2023,Surveys,HALE,UK Health Security Agency,251867,"35,564.18",Statistical Services,Large,Programme Expenditure
UK Statistics Family,Office for National Statistics,04/01/2023,Accommodation & Building Management,Interview Management IPS,Heathrow Airport,252245,"36,326.18",Rental Charges,Large,Programme Expenditure
UK Statistics Family,Office for National Statistics,04/01/2023,Office Related Goods And Services,Interview Management IPS,Heathrow Airport,252245,112.98,Rental Charges,Large,Programme Expenditure
UK Statistics Family,Office for National Statistics,04/01/2023,Exp - Purchase Of Goods/Services - Contractors,Testing,La International,252247,"13,851.11",Information Management Services,SME,Programme Expenditure
UK Statistics Family,Office for National Statistics,04/01/2023,Exp - Purchase Of Goods/Services - Contractors,Testing,La International,252247,"3,317.65",Information Management Services,SME,Programme Expenditure
UK Statistics Family,Office for National Statistics,04/01/2023,Exp - Purchase Of Goods/Services - Contractors,Consultancy Management,La International,252247,"3,681.18",Information Management Services,SME,Programme Expenditure
UK Statistics Family,Office for National Statistics,04/01/2023,Exp - Purchase Of Goods/Services - Contractors,Security And Information Management Saim,La International,252247,"19,380.00",Information Management Services,SME,Programme Expenditure
UK Statistics Family,Office for National Statistics,04/01/2023,Exp - Purchase Of Goods/Services - Contractors,CLOUD ARCHITECTURE,La International,252247,"6,664.04",Information Management Services,SME,Programme Expenditure
UK Statistics Family,Office for National Statistics,04/01/2023,Exp - Purchase Of Goods/Services - Contractors,Tech Delivery Next Gen IT And Infrastructure,La International,252247,"3,844.62",Information Management Services,SME,Programme Expenditure
UK Statistics Family,Office for National Statistics,04/01/2023,Hosting,CLOUD ARCHITECTURE,Amazon Web Services Inc,252255,"269,232.38",Information Management Services,Large,Programme Expenditure
UK Statistics Family,Office for National Statistics,04/01/2023,Hosting,CDIO UNGP,Amazon Web Services Inc,252255,1.82,Information Management Services,Large,Programme Expenditure
UK Statistics Family,Office for National Statistics,04/01/2023,Survey Incentive Vouchers,Social Survey Transformation Newport,Sodexo Motivation Solutions U.K. ltd,252258,9.87,Survey Response Incentive Vouchers,Large,Programme Expenditure
UK Statistics Family,Office for National Statistics,04/01/2023,Survey Incentive Vouchers,Covid Infection Survey,Sodexo Motivation Solutions U.K. ltd,252258,"120,317.10",Survey Response Incentive Vouchers,Large,Programme Expenditure
UK Statistics Family,Office for National Statistics,05/01/2023,End User Software And Hardware,IT Operations,Bytes Software Services Ltd,252410,"136,693.30",Software Licenses,Large,Programme Expenditure
UK Statistics Family,Office for National Statistics,05/01/2023,Exp - Purchase Of Goods/Services - IT Contractual Services,PARTNERSHIP DEVELOPMENT,CTS (Cloud Technology Solutions Ltd),252412,"178,200.00",Information Management Services,Large,Programme Expenditure
UK Statistics Family,Office for National Statistics,06/01/2023,Exp - Purchase Of Goods/Services - Contractors,Data Architecture,Certes Computing Ltd,252510,"21,000.00",Information Management Services,SME,Programme Expenditure
UK Statistics Family,Office for National Statistics,06/01/2023,Exp - Purchase Of Goods/Services - Contractors,CLOUD ARCHITECTURE,Certes Computing Ltd,252510,"13,692.50",Information Management Services,SME,Programme Expenditure
UK Statistics Family,Office for National Statistics,06/01/2023,Exp - Purchase Of Goods/Services - Contractors,Strategy And Architecture,Certes Computing Ltd,252510,"13,500.00",Information Management Services,SME,Programme Expenditure
UK Statistics Family,Office for National Statistics,06/01/2023,Exp - Purchase Of Goods/Services - Contractors,IT Applications,Certes Computing Ltd,252510,"11,154.47",Information Management Services,SME,Programme Expenditure
UK Statistics Family,Office for National Statistics,06/01/2023,Exp - Purchase Of Goods/Services - Contractors,Data Architecture,La International,252511,"29,764.12",Information Management Services,SME,Programme Expenditure
UK Statistics Family,Office for National Statistics,06/01/2023,Exp - Purchase Of Goods/Services - Contractors,INTEGRATED DATA STRATEGY AND DELIVERY,Malikshaw Interim & Executive,252517,"10,313.64",Information Management Services,SME,Programme Expenditure
UK Statistics Family,Office for National Statistics,06/01/2023,Exp - Purchase Of Goods/Services - Contractors,Data Architecture,Malikshaw Interim & Executive,252517,"12,230.40",Information Management Services,SME,Programme Expenditure
UK Statistics Family,Office for National Statistics,06/01/2023,Exp - Short-Term Contract & Agency Staff - Full Cost,Strategy And Architecture,Malikshaw Interim & Executive,252517,"2,051.28",Information Management Services,SME,Programme Expenditure
UK Statistics Family,Office for National Statistics,06/01/2023,Exp - Purchase Of Goods/Services - Contractors,DATA ENGINEERING OPERATIONS AND DELIVERY,Malikshaw Interim & Executive,252517,"14,004.00",Information Management Services,SME,Programme Expenditure
UK Statistics Family,Office for National Statistics,06/01/2023,Surveys,Prices Division,Kantar Public UK Ltd.,252518,"218,353.80",Statistical Services,SME,Programme Expenditure
UK Statistics Family,Office for National Statistics,06/01/2023,Exp - Purchase Of Goods/Services - Contractors,Data Architecture,SmartSourcing Ltd,252524,"48,771.08",Information Management Services,SME,Programme Expenditure
UK Statistics Family,Office for National Statistics,06/01/2023,Exp - Purchase Of Goods/Services - Contractors,Data As A Service,SmartSourcing Ltd,252524,"11,866.18",Information Management Services,SME,Programme Expenditure
UK Statistics Family,Office for National Statistics,06/01/2023,Exp - Purchase Of Goods/Services - Contractors,Programme Support,Parity Resources Limited,252527,"5,760.00",Information Management Services,Large,Programme Expenditure
UK Statistics Family,Office for National Statistics,06/01/2023,Exp - Short-Term Contract & Agency Staff - Full Cost,Recruitment ,Parity Resources Limited,252527,"1,207.68",Information Management Services,Large,Programme Expenditure
UK Statistics Family,Office for National Statistics,06/01/2023,Exp - Purchase Of Goods/Services - Contractors,Data Architecture,Parity Resources Limited,252527,"15,393.60",Information Management Services,Large,Programme Expenditure
UK Statistics Family,Office for National Statistics,06/01/2023,Exp - Purchase Of Goods/Services - Contractors,CDIO UNGP,Parity Resources Limited,252527,"4,600.50",Information Management Services,Large,Programme Expenditure
UK Statistics Family,Office for National Statistics,06/01/2023,Exp - Purchase Of Goods/Services - Contractors,Strategy And Architecture,Parity Resources Limited,252527,"5,894.70",Information Management Services,Large,Programme Expenditure
UK Statistics Family,Office for National Statistics,06/01/2023,Exp - Purchase Of Goods/Services - Contractors,Tech Delivery Next Gen IT And Infrastructure,Parity Resources Limited,252527,"9,601.20",Information Management Services,Large,Programme Expenditure
UK Statistics Family,Office for National Statistics,06/01/2023,Exp - Purchase Of Goods/Services - Contractors,Covid Infection Survey,Talent International,252528,"15,434.97",Information Management Services,SME,Programme Expenditure
UK Statistics Family,Office for National Statistics,06/01/2023,Exp - Purchase Of Goods/Services - Contractors,Digital Media,Talent International,252528,"17,010.00",Information Management Services,SME,Programme Expenditure
UK Statistics Family,Office for National Statistics,06/01/2023,Exp - Purchase Of Goods/Services - Contractors,Security Advisory,Talent International,252528,"10,874.86",Information Management Services,SME,Programme Expenditure
UK Statistics Family,Office for National Statistics,06/01/2023,Exp - Purchase Of Goods/Services - Contractors,Data Architecture,Talent International,252528,"15,300.00",Information Management Services,SME,Programme Expenditure
UK Statistics Family,Office for National Statistics,06/01/2023,Exp - Purchase Of Goods/Services - Contractors,Data Architecture,Talent International,252528,"17,279.78",Information Management Services,SME,Programme Expenditure
UK Statistics Family,Office for National Statistics,06/01/2023,Exp - Purchase Of Goods/Services - Contractors,DATA ENGINEERING OPERATIONS AND DELIVERY,Talent International,252528,"17,820.00",Information Management Services,SME,Programme Expenditure
UK Statistics Family,Office for National Statistics,09/01/2023,Exp - Seconded UK Staff - Basic Salary,Data Science Campus,Bank of England,252630,"3,594.73",Staff Secondment Costs,Large,Programme Expenditure
UK Statistics Family,Office for National Statistics,09/01/2023,Exp - Seconded UK Staff - Basic Salary,Data Science Campus,Bank of England,252630,"8,387.71",Staff Secondment Costs,Large,Programme Expenditure
UK Statistics Family,Office for National Statistics,09/01/2023,Exp - Seconded UK Staff - Basic Salary,Prices Division,Bank of England,252630,"14,647.30",Staff Secondment Costs,Large,Programme Expenditure
UK Statistics Family,Office for National Statistics,09/01/2023,Exp - Purchase Of Goods/Services - Contractors,Consultancy Management,Malikshaw Interim & Executive,252631,"10,382.40",Information Management Services,SME,Programme Expenditure
UK Statistics Family,Office for National Statistics,09/01/2023,Exp - Purchase Of Goods/Services - Contractors,IT Operations,Malikshaw Interim & Executive,252631,"15,708.00",Information Management Services,SME,Programme Expenditure
UK Statistics Family,Office for National Statistics,09/01/2023,Hosting,CLOUD ARCHITECTURE,CTS (Cloud Technology Solutions Ltd),252632,88.79,Information Management Services,Large,Programme Expenditure
UK Statistics Family,Office for National Statistics,09/01/2023,Hosting,CLOUD ARCHITECTURE,CTS (Cloud Technology Solutions Ltd),252632,"179,824.94",Information Management Services,Large,Programme Expenditure
UK Statistics Family,Office for National Statistics,09/01/2023,Exp - Purchase Of Goods/Services - Contractors,Consultancy Management,LA FOSSE ASSOCIATES LIMITED,252634,"13,319.81",Information Management Services,Large,Programme Expenditure
UK Statistics Family,Office for National Statistics,09/01/2023,Exp - Purchase Of Goods/Services - Contractors,Consultancy Management,LA FOSSE ASSOCIATES LIMITED,252634,"9,000.00",Information Management Services,Large,Programme Expenditure
UK Statistics Family,Office for National Statistics,09/01/2023,Exp - Purchase Of Goods/Services - Contractors,Data Architecture,LA FOSSE ASSOCIATES LIMITED,252634,"12,960.00",Information Management Services,Large,Programme Expenditure
UK Statistics Family,Office for National Statistics,09/01/2023,Exp - Purchase Of Goods/Services - Contractors,Data Architecture,LA FOSSE ASSOCIATES LIMITED,252634,"3,600.00",Information Management Services,Large,Programme Expenditure
UK Statistics Family,Office for National Statistics,09/01/2023,Exp - Purchase Of Goods/Services - Contractors,Tech Delivery Legacy Sp,LA FOSSE ASSOCIATES LIMITED,252634,"20,700.00",Information Management Services,Large,Programme Expenditure
UK Statistics Family,Office for National Statistics,09/01/2023,Exp - Purchase Of Goods/Services - Contractors,Digital Delivery,LA FOSSE ASSOCIATES LIMITED,252634,"15,840.00",Information Management Services,Large,Programme Expenditure
UK Statistics Family,Office for National Statistics,09/01/2023,Other Goods And Services,Security And Information Management Saim,Cabinet Office,252638,"65,382.41",Security Vetting Services,Large,Programme Expenditure
UK Statistics Family,Office for National Statistics,09/01/2023,Exp - Purchase Of Goods/Services - Contractors,Consultancy Management,Talent International,252639,"12,960.00",Information Management Services,SME,Programme Expenditure
UK Statistics Family,Office for National Statistics,09/01/2023,Exp - Purchase Of Goods/Services - Contractors,Covid Infection Survey,Talent International,252639,"15,600.00",Information Management Services,SME,Programme Expenditure
UK Statistics Family,Office for National Statistics,09/01/2023,Exp - Purchase Of Goods/Services - Contractors,Strategy And Architecture,Talent International,252639,"15,120.00",Information Management Services,SME,Programme Expenditure
UK Statistics Family,Office for National Statistics,09/01/2023,Exp - Purchase Of Goods/Services - Contractors,IT Operations,Talent International,252639,"15,210.00",Information Management Services,SME,Programme Expenditure
UK Statistics Family,Office for National Statistics,09/01/2023,Exp - Purchase Of Goods/Services - Contractors,IT Operations,Talent International,252639,"10,200.00",Information Management Services,SME,Programme Expenditure
UK Statistics Family,Office for National Statistics,09/01/2023,Other Goods And Services,Crime Statistics,Crest Advisory (UK) Ltd,252641,"36,912.00",Consultancy,SME,Programme Expenditure
UK Statistics Family,Office for National Statistics,10/01/2023,Other Goods And Services,Security Advisory,AMR Cyber Security,252901,"9,450.00",Information Management Services,Large,Programme Expenditure
UK Statistics Family,Office for National Statistics,10/01/2023,Other Goods And Services,IT Operations,AMR Cyber Security,252901,"21,615.00",Information Management Services,Large,Programme Expenditure
UK Statistics Family,Office for National Statistics,10/01/2023,FM Contract Payments,Vinci Payments,Vinci Construction UK Limited,252905,"25,248.80",Facilities Mangement Services,Large,Programme Expenditure
UK Statistics Family,Office for National Statistics,11/01/2023,PPE - NON-PROPERTY (LEASED NON-PFI) - COST - ADDITIONS (AS LESSEE),IT Operations,Crown Hosting Data Centres Limited,253045,"61,239.13",Information Management Services,SME,Programme Expenditure
UK Statistics Family,Office for National Statistics,11/01/2023,Exp - Purchase Of Goods/Services - IT Contractual Services,PARTNERSHIP DEVELOPMENT,CTS (Cloud Technology Solutions Ltd),253050,"148,305.00",Information Management Services,Large,Programme Expenditure
UK Statistics Family,Office for National Statistics,11/01/2023,Exp - Purchase Of Goods/Services - IT Contractual Services,CDIO UNGP,CTS (Cloud Technology Solutions Ltd),253050,"177,019.20",Information Management Services,Large,Programme Expenditure
UK Statistics Family,Office for National Statistics,11/01/2023,Exp - Short-Term Contract & Agency Staff - Full Cost,Data Architecture,SmartSourcing Ltd,253054,"1,758.24",Information Management Services,SME,Programme Expenditure
UK Statistics Family,Office for National Statistics,11/01/2023,Exp - Purchase Of Goods/Services - Contractors,IT Operations,SmartSourcing Ltd,253054,"15,733.88",Information Management Services,SME,Programme Expenditure
UK Statistics Family,Office for National Statistics,11/01/2023,Exp - Purchase Of Goods/Services - Contractors,IT Operations,SmartSourcing Ltd,253054,"7,792.32",Information Management Services,SME,Programme Expenditure
UK Statistics Family,Office for National Statistics,11/01/2023,Exp - Purchase Of Goods/Services - IT Contractual Services,Digital Delivery,Armakuni Ltd,253055,"29,700.00",Information Management Services,SME,Programme Expenditure
UK Statistics Family,Office for National Statistics,11/01/2023,End User Software And Hardware,IT Operations,Gartner (CEB),253058,"39,600.00",Software Licenses,Large,Programme Expenditure
UK Statistics Family,Office for National Statistics,12/01/2023,Exp - Purchase Of Goods And Services Consultants,2023 CENSUS DATA TRANSFORMATION,The Sensible Code Company,253172,"125,791.20",Statistical Services,SME,Programme Expenditure
UK Statistics Family,Office for National Statistics,12/01/2023,Survey Incentive Vouchers,Survey Management,Sodexo Motivation Solutions U.K. ltd,253173,"2,536.31",Survey Response Incentive Vouchers,Large,Programme Expenditure
UK Statistics Family,Office for National Statistics,12/01/2023,Survey Incentive Vouchers,Survey Management,Sodexo Motivation Solutions U.K. ltd,253173,424.36,Survey Response Incentive Vouchers,Large,Programme Expenditure
UK Statistics Family,Office for National Statistics,12/01/2023,Survey Incentive Vouchers,Survey Management,Sodexo Motivation Solutions U.K. ltd,253173,"3,090.02",Survey Response Incentive Vouchers,Large,Programme Expenditure
UK Statistics Family,Office for National Statistics,12/01/2023,Survey Incentive Vouchers,Survey Management,Sodexo Motivation Solutions U.K. ltd,253173,"50,515.49",Survey Response Incentive Vouchers,Large,Programme Expenditure
UK Statistics Family,Office for National Statistics,12/01/2023,Survey Incentive Vouchers,Survey Management,Sodexo Motivation Solutions U.K. ltd,253173,"11,814.20",Survey Response Incentive Vouchers,Large,Programme Expenditure
UK Statistics Family,Office for National Statistics,12/01/2023,Survey Incentive Vouchers,Survey Management,Sodexo Motivation Solutions U.K. ltd,253173,"13,555.10",Survey Response Incentive Vouchers,Large,Programme Expenditure
UK Statistics Family,Office for National Statistics,12/01/2023,Other Goods And Services,ONS Corporate Funds,Edenred (UK Group) Limited,253174,"59,850.00",Performance Reward Vouchers,Large,Programme Expenditure
UK Statistics Family,Office for National Statistics,13/01/2023,Exp - Purchase Of Goods And Services Consultants,Productivity Research And Professional Development,Niesr,253274,"338,055.70",Statistical Services,SME,Programme Expenditure
UK Statistics Family,Office for National Statistics,13/01/2023,Purchase of Goods and Services - Training,Productivity Research And Professional Development,Niesr,253274,"8,892.50",Training and Educational Services,SME,Programme Expenditure
UK Statistics Family,Office for National Statistics,16/01/2023,Exp - Purchase Of Goods/Services - Contractors,Testing,La International,253389,"3,125.95",Information Management Services,SME,Programme Expenditure
UK Statistics Family,Office for National Statistics,16/01/2023,Exp - Purchase Of Goods/Services - Contractors,Testing,La International,253389,"2,658.71",Information Management Services,SME,Programme Expenditure
UK Statistics Family,Office for National Statistics,16/01/2023,Exp - Purchase Of Goods/Services - Contractors,Testing,La International,253389,"2,654.12",Information Management Services,SME,Programme Expenditure
UK Statistics Family,Office for National Statistics,16/01/2023,Exp - Purchase Of Goods/Services - Contractors,Data Architecture,La International,253389,"6,490.84",Information Management Services,SME,Programme Expenditure
UK Statistics Family,Office for National Statistics,16/01/2023,Exp - Purchase Of Goods/Services - Contractors,Tech Delivery Next Gen IT And Infrastructure,La International,253389,"2,306.77",Information Management Services,SME,Programme Expenditure
UK Statistics Family,Office for National Statistics,16/01/2023,Exp - Purchase Of Goods/Services - Contractors,IT Applications,La International,253389,"1,492.94",Information Management Services,SME,Programme Expenditure
UK Statistics Family,Office for National Statistics,16/01/2023,Exp - Purchase Of Goods/Services - Contractors,IT Operations,La International,253389,"22,178.88",Information Management Services,SME,Programme Expenditure
UK Statistics Family,Office for National Statistics,16/01/2023,Exp - Purchase Of Goods/Services - Contractors,Security Advisory,Parity Resources Limited,253401,"28,689.30",Information Management Services,Large,Programme Expenditure
UK Statistics Family,Office for National Statistics,16/01/2023,Exp - Purchase Of Goods/Services - Contractors,CDIO UNGP,Parity Resources Limited,253401,"2,760.30",Information Management Services,Large,Programme Expenditure
UK Statistics Family,Office for National Statistics,16/01/2023,Exp - Purchase Of Goods/Services - Contractors,IT Applications,Parity Resources Limited,253401,"27,316.80",Information Management Services,Large,Programme Expenditure
UK Statistics Family,Office for National Statistics,16/01/2023,Exp - Purchase Of Goods/Services - Contractors,IT Operations,Parity Resources Limited,253401,"1,775.26",Information Management Services,Large,Programme Expenditure
UK Statistics Family,Office for National Statistics,16/01/2023,Exp - Purchase Of Goods/Services - Contractors,DATA ENGINEERING OPERATIONS AND DELIVERY,Parity Resources Limited,253401,"14,077.80",Information Management Services,Large,Programme Expenditure
UK Statistics Family,Office for National Statistics,16/01/2023,IT (Owned) At Cost - Additions,IT Operations,Insight Direct,253403,"1,499,499.38",Software Licenses,Large,Programme Expenditure
UK Statistics Family,Office for National Statistics,16/01/2023,Exp - Purchase Of Goods And Services Consultants,Economic Statistics,Matt Hamnet & Associates Ltd,253406,"17,520.00",Consultancy,SME,Programme Expenditure
UK Statistics Family,Office for National Statistics,16/01/2023,Exp - Purchase Of Goods And Services Consultants,Business Architecture Transformation And Statistical Strategy,Matt Hamnet & Associates Ltd,253406,"74,460.00",Consultancy,SME,Programme Expenditure
UK Statistics Family,Office for National Statistics,16/01/2023,Exp - Purchase Of Goods And Services Consultants,"SUB-NATIONAL STATISTICS AND ANALYSIS
",Matt Hamnet & Associates Ltd,253406,"48,750.00",Consultancy,SME,Programme Expenditure
UK Statistics Family,Office for National Statistics,16/01/2023,Exp - Purchase Of Goods/Services - Contractors,GSS Strategy Delivery,Interventions Alliance,253409,"28,890.00",Data Acquisition,Large,Programme Expenditure
UK Statistics Family,Office for National Statistics,16/01/2023,Exp - Short-Term Contract & Agency Staff - Full Cost,Beyond 2021 Research And Design,Concept Information Technology Ltd T/A Concept Resourcing,253413,"2,605.00",Information Management Services,Large,Programme Expenditure
UK Statistics Family,Office for National Statistics,16/01/2023,Exp - Purchase Of Goods/Services - Contractors,Beyond 2021 Research And Design,Concept Information Technology Ltd T/A Concept Resourcing,253413,"10,497.71",Information Management Services,Large,Programme Expenditure
UK Statistics Family,Office for National Statistics,16/01/2023,Exp - Short-Term Contract & Agency Staff - Full Cost,Business Change Support,Concept Information Technology Ltd T/A Concept Resourcing,253413,"1,688.63",Information Management Services,Large,Programme Expenditure
UK Statistics Family,Office for National Statistics,16/01/2023,Exp - Short-Term Contract & Agency Staff - Full Cost,Business Change Support,Concept Information Technology Ltd T/A Concept Resourcing,253413,"8,868.85",Information Management Services,Large,Programme Expenditure
UK Statistics Family,Office for National Statistics,16/01/2023,Exp - Short-Term Contract & Agency Staff - Full Cost,Business Change Support,Concept Information Technology Ltd T/A Concept Resourcing,253413,"7,016.70",Information Management Services,Large,Programme Expenditure
UK Statistics Family,Office for National Statistics,16/01/2023,Exp - Short-Term Contract & Agency Staff - Full Cost,Business Change Support,Concept Information Technology Ltd T/A Concept Resourcing,253413,"3,462.93",Information Management Services,Large,Programme Expenditure
UK Statistics Family,Office for National Statistics,16/01/2023,Exp - Short-Term Contract & Agency Staff - Full Cost,Business Change Support,Concept Information Technology Ltd T/A Concept Resourcing,253413,"5,484.83",Information Management Services,Large,Programme Expenditure
UK Statistics Family,Office for National Statistics,16/01/2023,Exp - Short-Term Contract & Agency Staff - Full Cost,Business Change Support,Concept Information Technology Ltd T/A Concept Resourcing,253413,"3,800.00",Information Management Services,Large,Programme Expenditure
UK Statistics Family,Office for National Statistics,16/01/2023,Exp - Short-Term Contract & Agency Staff - Full Cost,N A Coordination,Concept Information Technology Ltd T/A Concept Resourcing,253413,843.6,Information Management Services,Large,Programme Expenditure
UK Statistics Family,Office for National Statistics,16/01/2023,Exp - Short-Term Contract & Agency Staff - Full Cost,ECONOMICS STATISTICS CHANGE CENTRAL,Concept Information Technology Ltd T/A Concept Resourcing,253413,"2,974.92",Information Management Services,Large,Programme Expenditure
UK Statistics Family,Office for National Statistics,16/01/2023,Exp - Short-Term Contract & Agency Staff - Full Cost,Best Practice And Impact,Concept Information Technology Ltd T/A Concept Resourcing,253413,"3,564.87",Information Management Services,Large,Programme Expenditure
UK Statistics Family,Office for National Statistics,16/01/2023,Exp - Short-Term Contract & Agency Staff - Full Cost,Social Surveys Division,Concept Information Technology Ltd T/A Concept Resourcing,253413,"6,563.57",Information Management Services,Large,Programme Expenditure
UK Statistics Family,Office for National Statistics,16/01/2023,Exp - Short-Term Contract & Agency Staff - Full Cost,Prices Division,Concept Information Technology Ltd T/A Concept Resourcing,253413,"2,961.04",Information Management Services,Large,Programme Expenditure
UK Statistics Family,Office for National Statistics,16/01/2023,Exp - Short-Term Contract & Agency Staff - Full Cost,Prices Division,Concept Information Technology Ltd T/A Concept Resourcing,253413,"4,428.90",Information Management Services,Large,Programme Expenditure
UK Statistics Family,Office for National Statistics,16/01/2023,Exp - Short-Term Contract & Agency Staff - Full Cost,Corporations,Concept Information Technology Ltd T/A Concept Resourcing,253413,655.5,Information Management Services,Large,Programme Expenditure
UK Statistics Family,Office for National Statistics,16/01/2023,"ICT Outsourcing, Maintenance And Support",IT Operations,Scc,253416,"423,063.80",Software Licenses,Large,Programme Expenditure
UK Statistics Family,Office for National Statistics,16/01/2023,Exp - Purchase Of Goods/Services - IT Contractual Services,IT Operations,Ibm United Kingdom Ltd,253418,"115,861.20",Information Management Services,Large,Programme Expenditure
UK Statistics Family,Office for National Statistics,16/01/2023,Exp - Purchase Of Goods/Services - IT Contractual Services,IT Operations,Ibm United Kingdom Ltd,253418,"103,365.90",Information Management Services,Large,Programme Expenditure
UK Statistics Family,Office for National Statistics,16/01/2023,Exp - Purchase Of Goods/Services - Contractors,Data Architecture,Certes Computing Ltd,253420,"13,311.53",Information Management Services,SME,Programme Expenditure
UK Statistics Family,Office for National Statistics,16/01/2023,Exp - Purchase Of Goods/Services - Contractors,Strategy And Architecture,Certes Computing Ltd,253420,"12,870.00",Information Management Services,SME,Programme Expenditure
UK Statistics Family,Office for National Statistics,17/01/2023,Travel And Subsistence,Corporate Centre,Corporate Travel Management ,253628,"26,208.48",Travel and Accommodation,SME,Programme Expenditure
UK Statistics Family,Office for National Statistics,17/01/2023,Exp - Purchase Of Goods/Services - Contractors,Security Advisory,Certes Computing Ltd,253629,"13,692.50",Information Management Services,SME,Programme Expenditure
UK Statistics Family,Office for National Statistics,17/01/2023,Exp - Purchase Of Goods/Services - Contractors,IT Applications,Certes Computing Ltd,253629,"14,398.56",Information Management Services,SME,Programme Expenditure
UK Statistics Family,Office for National Statistics,17/01/2023,Exp - Purchase Of Goods/Services - IT Contractual Services,CDIO UNGP,CTS (Cloud Technology Solutions Ltd),253632,"129,675.00",Information Management Services,Large,Programme Expenditure
UK Statistics Family,Office for National Statistics,17/01/2023,Exp - Purchase Of Goods And Services Consultants,Digital Publishing,Methods Business & Digital Technology Ltd,253635,"120,000.00",Information Management Services,Large,Programme Expenditure
UK Statistics Family,Office for National Statistics,17/01/2023,Exp - Purchase Of Goods And Services Consultants,Digital Media,Methods Business & Digital Technology Ltd,253635,"72,714.76",Information Management Services,Large,Programme Expenditure
UK Statistics Family,Office for National Statistics,17/01/2023,Exp - Purchase Of Goods/Services - IT Contractual Services,IT Applications,Diegesis Limited,253636,"248,520.00",Information Management Services,Large,Programme Expenditure
UK Statistics Family,Office for National Statistics,17/01/2023,Exp - Short-Term Contract & Agency Staff - Full Cost,Recruitment ,Talent International,253643,"4,106.64",Information Management Services,SME,Programme Expenditure
UK Statistics Family,Office for National Statistics,17/01/2023,Exp - Purchase Of Goods/Services - Contractors,INTEGRATED DATA STRATEGY AND DELIVERY,Talent International,253643,"26,910.00",Information Management Services,SME,Programme Expenditure
UK Statistics Family,Office for National Statistics,17/01/2023,Non IT Maintenance And Hire,REPROGRAPHICS,Canon UK Ltd,253646,"30,973.32",Leasing of Equipment ,Large,Programme Expenditure
UK Statistics Family,Office for National Statistics,18/01/2023,Exp - Purchase Of Goods/Services - IT Contractual Services,CDIO UNGP,Microsoft Limited,253826,"30,721.50",Information Management Services,Large,Programme Expenditure
UK Statistics Family,Office for National Statistics,18/01/2023,Telecoms,Interviewer Management FiF,Vodafone Corporate Ltd,253827,"21,477.68",Telecommunications,Large,Programme Expenditure
UK Statistics Family,Office for National Statistics,18/01/2023,Telecoms,Interview Management IPS,Vodafone Corporate Ltd,253827,"5,708.82",Telecommunications,Large,Programme Expenditure
UK Statistics Family,Office for National Statistics,18/01/2023,Exp - Purchase Of Goods/Services - IT Contractual Services,Digital Publishing,Swirrl It Ltd,253829,"71,026.20",Information Management Services,SME,Programme Expenditure
UK Statistics Family,Office for National Statistics,18/01/2023,Exp - Short-Term Contract & Agency Staff - Full Cost,GSS Strategy Delivery,Concept Information Technology Ltd T/A Concept Resourcing,253830,655.5,Information Management Services,Large,Programme Expenditure
UK Statistics Family,Office for National Statistics,18/01/2023,Exp - Short-Term Contract & Agency Staff - Full Cost,2023 CENSUS DATA TRANSFORMATION,Concept Information Technology Ltd T/A Concept Resourcing,253830,301.26,Information Management Services,Large,Programme Expenditure
UK Statistics Family,Office for National Statistics,18/01/2023,Exp - Short-Term Contract & Agency Staff - Full Cost,N A Coordination,Concept Information Technology Ltd T/A Concept Resourcing,253830,323.58,Information Management Services,Large,Programme Expenditure
UK Statistics Family,Office for National Statistics,18/01/2023,Exp - Short-Term Contract & Agency Staff - Full Cost,International Trade And Transactions,Concept Information Technology Ltd T/A Concept Resourcing,253830,"8,033.00",Information Management Services,Large,Programme Expenditure
UK Statistics Family,Office for National Statistics,18/01/2023,Exp - Short-Term Contract & Agency Staff - Full Cost,International Trade And Transactions,Concept Information Technology Ltd T/A Concept Resourcing,253830,"2,143.72",Information Management Services,Large,Programme Expenditure
UK Statistics Family,Office for National Statistics,18/01/2023,Exp - Short-Term Contract & Agency Staff - Full Cost,International Trade And Transactions,Concept Information Technology Ltd T/A Concept Resourcing,253830,"7,267.92",Information Management Services,Large,Programme Expenditure
UK Statistics Family,Office for National Statistics,18/01/2023,Exp - Short-Term Contract & Agency Staff - Full Cost,International Trade And Transactions,Concept Information Technology Ltd T/A Concept Resourcing,253830,467,Information Management Services,Large,Programme Expenditure
UK Statistics Family,Office for National Statistics,18/01/2023,Exp - Short-Term Contract & Agency Staff - Full Cost,Productivity Research And Professional Development,Concept Information Technology Ltd T/A Concept Resourcing,253830,"3,637.93",Information Management Services,Large,Programme Expenditure
UK Statistics Family,Office for National Statistics,18/01/2023,Exp - Short-Term Contract & Agency Staff - Full Cost,Productivity Research And Professional Development,Concept Information Technology Ltd T/A Concept Resourcing,253830,171.94,Information Management Services,Large,Programme Expenditure
UK Statistics Family,Office for National Statistics,18/01/2023,Exp - Short-Term Contract & Agency Staff - Full Cost,ANALYSIS FUNCTION STRATEGY AND DELIVERY,Concept Information Technology Ltd T/A Concept Resourcing,253830,"1,311.00",Information Management Services,Large,Programme Expenditure
UK Statistics Family,Office for National Statistics,18/01/2023,Exp - Short-Term Contract & Agency Staff - Full Cost,Recruitment ,Concept Information Technology Ltd T/A Concept Resourcing,253830,"2,607.17",Information Management Services,Large,Programme Expenditure
UK Statistics Family,Office for National Statistics,18/01/2023,Exp - Short-Term Contract & Agency Staff - Full Cost,Recruitment ,Concept Information Technology Ltd T/A Concept Resourcing,253830,"2,805.19",Information Management Services,Large,Programme Expenditure
UK Statistics Family,Office for National Statistics,18/01/2023,Exp - Short-Term Contract & Agency Staff - Full Cost,Public Sector And Households,Concept Information Technology Ltd T/A Concept Resourcing,253830,"17,786.88",Information Management Services,Large,Programme Expenditure
UK Statistics Family,Office for National Statistics,18/01/2023,Specialist User Software And Hardware,Security Operations,Computacenter (Uk) Limited,253843,"269,832.26",Computers and Peripherals,Large,Programme Expenditure
UK Statistics Family,Office for National Statistics,18/01/2023,End User Software And Hardware,IT Operations,Computacenter (Uk) Limited,253843,"20,820.00",Computers and Peripherals,Large,Programme Expenditure
UK Statistics Family,Office for National Statistics,18/01/2023,Surveys,Prices Division,Kantar Public UK Ltd.,253850,"8,880.00",Statistical Services,SME,Programme Expenditure
UK Statistics Family,Office for National Statistics,18/01/2023,EXP - PURCHASE OF GOODS/SERVICES - DATA ACQUISITION,Prices Division,Kantar Public UK Ltd.,253850,"18,900.00",Statistical Services,SME,Programme Expenditure
UK Statistics Family,Office for National Statistics,18/01/2023,"ICT Outsourcing, Maintenance And Support",PARTNERSHIP DEVELOPMENT,CGI IT UK Limited,253853,"73,015.58",Information Management Services,Large,Programme Expenditure
UK Statistics Family,Office for National Statistics,18/01/2023,Exp - Purchase Of Goods/Services - IT Contractual Services,PARTNERSHIP DEVELOPMENT,CGI IT UK Limited,253853,"268,176.68",Information Management Services,Large,Programme Expenditure
UK Statistics Family,Office for National Statistics,18/01/2023,Exp - Purchase Of Goods And Services Consultants,Digital Publishing,Methods Business & Digital Technology Ltd,253855,"55,035.00",Information Management Services,Large,Programme Expenditure
UK Statistics Family,Office for National Statistics,18/01/2023,Survey Incentive Vouchers,Survey Management,Sodexo Motivation Solutions U.K. ltd,253857,"1,633.52",Survey Response Incentive Vouchers,Large,Programme Expenditure
UK Statistics Family,Office for National Statistics,18/01/2023,Survey Incentive Vouchers,Survey Management,Sodexo Motivation Solutions U.K. ltd,253857,363,Survey Response Incentive Vouchers,Large,Programme Expenditure
UK Statistics Family,Office for National Statistics,18/01/2023,Survey Incentive Vouchers,Survey Management,Sodexo Motivation Solutions U.K. ltd,253857,"1,695.22",Survey Response Incentive Vouchers,Large,Programme Expenditure
UK Statistics Family,Office for National Statistics,18/01/2023,Survey Incentive Vouchers,Survey Management,Sodexo Motivation Solutions U.K. ltd,253857,"48,944.73",Survey Response Incentive Vouchers,Large,Programme Expenditure
UK Statistics Family,Office for National Statistics,18/01/2023,Survey Incentive Vouchers,Survey Management,Sodexo Motivation Solutions U.K. ltd,253857,"10,925.65",Survey Response Incentive Vouchers,Large,Programme Expenditure
UK Statistics Family,Office for National Statistics,18/01/2023,Survey Incentive Vouchers,Survey Management,Sodexo Motivation Solutions U.K. ltd,253857,832.2,Survey Response Incentive Vouchers,Large,Programme Expenditure
UK Statistics Family,Office for National Statistics,18/01/2023,Survey Incentive Vouchers,Covid Infection Survey,Sodexo Motivation Solutions U.K. ltd,253857,"150,109.50",Survey Response Incentive Vouchers,Large,Programme Expenditure
UK Statistics Family,Office for National Statistics,18/01/2023,Survey Incentive Vouchers,Interviewer Support,Sodexo Motivation Solutions U.K. ltd,253857,187.48,Survey Response Incentive Vouchers,Large,Programme Expenditure
UK Statistics Family,Office for National Statistics,18/01/2023,Survey Incentive Vouchers,Survey Management,Sodexo Motivation Solutions U.K. ltd,253857,"11,626.10",Survey Response Incentive Vouchers,Large,Programme Expenditure
UK Statistics Family,Office for National Statistics,18/01/2023,Exp - Short-Term Contract & Agency Staff - Full Cost,Recruitment ,Talent International,253865,"3,008.54",Information Management Services,SME,Programme Expenditure
UK Statistics Family,Office for National Statistics,18/01/2023,Exp - Purchase Of Goods/Services - Contractors,Data Architecture,Talent International,253865,"31,050.00",Information Management Services,SME,Programme Expenditure
UK Statistics Family,Office for National Statistics,18/01/2023,Exp - Purchase Of Goods/Services - Contractors,Tech Delivery Legacy Sp,Talent International,253865,"15,340.80",Information Management Services,SME,Programme Expenditure
UK Statistics Family,Office for National Statistics,19/01/2023,Telecoms,IT Operations,Bt Global Services,254020,"25,785.44",Telecommunications,Large,Programme Expenditure
UK Statistics Family,Office for National Statistics,19/01/2023,Software Licences At Cost - Additions,CDIO UNGP,CTS (Cloud Technology Solutions Ltd),254021,"259,200.00",Software Licenses,Large,Programme Expenditure
UK Statistics Family,Office for National Statistics,19/01/2023,Software Licences At Cost - Additions,IT Operations,CTS (Cloud Technology Solutions Ltd),254021,"259,200.00",Software Licenses,Large,Programme Expenditure
UK Statistics Family,Office for National Statistics,19/01/2023,"ICT Outsourcing, Maintenance And Support",Researcher Support And Data Access ,Equiniti-TopLevel,254024,"46,656.00",Information Management Services,SME,Programme Expenditure
UK Statistics Family,Office for National Statistics,19/01/2023,Exp - Purchase Of Goods/Services - IT Contractual Services,Digital Publishing,Insight Direct,254026,"15,600.00",Information Management Services,Large,Programme Expenditure
UK Statistics Family,Office for National Statistics,19/01/2023,End User Software And Hardware,Digital Publishing,Insight Direct,254026,"34,723.58",Information Management Services,Large,Programme Expenditure
UK Statistics Family,Office for National Statistics,20/01/2023,FM Contract Payments,Vinci Payments,Vinci Construction UK Limited,254139,"391,963.33",Facilities Mangement Services,Large,Programme Expenditure
UK Statistics Family,Office for National Statistics,20/01/2023,"ICT Outsourcing, Maintenance And Support",Interviewer Support,Totalmobile Ltd,254143,"17,640.00",Information Management Services,SME,Programme Expenditure
UK Statistics Family,Office for National Statistics,20/01/2023,"ICT Outsourcing, Maintenance And Support",Interviewer Support,Totalmobile Ltd,254143,"127,170.00",Information Management Services,SME,Programme Expenditure
UK Statistics Family,Office for National Statistics,20/01/2023,Survey Incentive Vouchers,Survey Management,Sodexo Motivation Solutions U.K. ltd,254144,315.83,Survey Response Incentive Vouchers,Large,Programme Expenditure
UK Statistics Family,Office for National Statistics,20/01/2023,Survey Incentive Vouchers,Covid Infection Survey,Sodexo Motivation Solutions U.K. ltd,254144,"103,684.80",Survey Response Incentive Vouchers,Large,Programme Expenditure
UK Statistics Family,Office for National Statistics,23/01/2023,PPE - NON-PROPERTY (LEASED NON-PFI) - COST - ADDITIONS (AS LESSEE),IT Operations,Crown Hosting Data Centres Limited,254271,"61,237.12",Information Management Services,SME,Programme Expenditure
UK Statistics Family,Office for National Statistics,23/01/2023,FM Contract Payments,Vinci Payments,Vinci Construction UK Limited,254272,"29,517.91",Facilities Mangement Services,Large,Programme Expenditure
UK Statistics Family,Office for National Statistics,23/01/2023,Telecoms,IT Operations,Bt Global Services,254275,"52,284.00",Telecommunications,Large,Programme Expenditure
UK Statistics Family,Office for National Statistics,23/01/2023,End User Software And Hardware,IT Operations,Softcat PLC UK,254276,"733,696.68",Software Licenses,SME,Programme Expenditure
UK Statistics Family,Office for National Statistics,23/01/2023,Exp - Purchase Of Goods/Services - IT Contractual Services,CLOUD ARCHITECTURE,CTS (Cloud Technology Solutions Ltd),254282,"128,013.60",Information Management Services,Large,Programme Expenditure
UK Statistics Family,Office for National Statistics,23/01/2023,Telecoms,IT Operations,Cdw Limited,254284,"35,536.80",Information Management Services,Large,Programme Expenditure
UK Statistics Family,Office for National Statistics,23/01/2023,Telecoms,IT Operations,Freedom Communications (UK) Ltd,254287,"31,987.84",Information Management Services,Large,Programme Expenditure
UK Statistics Family,Office for National Statistics,23/01/2023,"ICT Outsourcing, Maintenance And Support",IT Operations,Akhter Computers PLC,254291,"47,442.50",Information Management Services,SME,Programme Expenditure
UK Statistics Family,Office for National Statistics,24/01/2023,Exp - Short-Term Contract & Agency Staff - Full Cost,Business Change Support,Concept Information Technology Ltd T/A Concept Resourcing,254533,"6,327.00",Information Management Services,Large,Programme Expenditure
UK Statistics Family,Office for National Statistics,24/01/2023,Exp - Short-Term Contract & Agency Staff - Full Cost,Business Change Support,Concept Information Technology Ltd T/A Concept Resourcing,254533,"2,952.60",Information Management Services,Large,Programme Expenditure
UK Statistics Family,Office for National Statistics,24/01/2023,Exp - Short-Term Contract & Agency Staff - Full Cost,Business Change Support,Concept Information Technology Ltd T/A Concept Resourcing,254533,"2,473.54",Information Management Services,Large,Programme Expenditure
UK Statistics Family,Office for National Statistics,24/01/2023,Exp - Short-Term Contract & Agency Staff - Full Cost,Business Change Support,Concept Information Technology Ltd T/A Concept Resourcing,254533,"3,298.04",Information Management Services,Large,Programme Expenditure
UK Statistics Family,Office for National Statistics,24/01/2023,Exp - Short-Term Contract & Agency Staff - Full Cost,Business Change Support,Concept Information Technology Ltd T/A Concept Resourcing,254533,"6,127.50",Information Management Services,Large,Programme Expenditure
UK Statistics Family,Office for National Statistics,24/01/2023,Exp - Short-Term Contract & Agency Staff - Full Cost,Business Change Support,Concept Information Technology Ltd T/A Concept Resourcing,254533,"5,608.33",Information Management Services,Large,Programme Expenditure
UK Statistics Family,Office for National Statistics,24/01/2023,Exp - Short-Term Contract & Agency Staff - Full Cost,N A Coordination,Concept Information Technology Ltd T/A Concept Resourcing,254533,"6,191.63",Information Management Services,Large,Programme Expenditure
UK Statistics Family,Office for National Statistics,24/01/2023,Exp - Short-Term Contract & Agency Staff - Full Cost,STRATEGY SYNTHESIS AND CO-ORDINATION,Concept Information Technology Ltd T/A Concept Resourcing,254533,266.94,Information Management Services,Large,Programme Expenditure
UK Statistics Family,Office for National Statistics,24/01/2023,Exp - Short-Term Contract & Agency Staff - Full Cost,"SUB-NATIONAL STATISTICS AND ANALYSIS
",Concept Information Technology Ltd T/A Concept Resourcing,254533,"3,796.20",Information Management Services,Large,Programme Expenditure
UK Statistics Family,Office for National Statistics,24/01/2023,Exp - Short-Term Contract & Agency Staff - Full Cost,"SUB-NATIONAL STATISTICS AND ANALYSIS
",Concept Information Technology Ltd T/A Concept Resourcing,254533,"3,202.62",Information Management Services,Large,Programme Expenditure
UK Statistics Family,Office for National Statistics,24/01/2023,Exp - Short-Term Contract & Agency Staff - Full Cost,ANALYSIS FUNCTION STRATEGY AND DELIVERY,Concept Information Technology Ltd T/A Concept Resourcing,254533,173.3,Information Management Services,Large,Programme Expenditure
UK Statistics Family,Office for National Statistics,24/01/2023,Exp - Short-Term Contract & Agency Staff - Full Cost,Crime Income And Wealth,Concept Information Technology Ltd T/A Concept Resourcing,254533,303.7,Information Management Services,Large,Programme Expenditure
UK Statistics Family,Office for National Statistics,24/01/2023,Exp - Short-Term Contract & Agency Staff - Full Cost,Crime Income And Wealth,Concept Information Technology Ltd T/A Concept Resourcing,254533,288.49,Information Management Services,Large,Programme Expenditure
UK Statistics Family,Office for National Statistics,24/01/2023,Exp - Short-Term Contract & Agency Staff - Full Cost,Crime Income And Wealth,Concept Information Technology Ltd T/A Concept Resourcing,254533,332.96,Information Management Services,Large,Programme Expenditure
UK Statistics Family,Office for National Statistics,24/01/2023,Exp - Purchase Of Goods/Services - Contractors,CDIO UNGP,Concept Information Technology Ltd T/A Concept Resourcing,254533,"10,568.16",Information Management Services,Large,Programme Expenditure
UK Statistics Family,Office for National Statistics,24/01/2023,Exp - Short-Term Contract & Agency Staff - Full Cost,Public Sector And Households,Concept Information Technology Ltd T/A Concept Resourcing,254533,522.99,Information Management Services,Large,Programme Expenditure
UK Statistics Family,Office for National Statistics,24/01/2023,Exp - Short-Term Contract & Agency Staff - Full Cost,Labour Market,Concept Information Technology Ltd T/A Concept Resourcing,254533,"3,800.00",Information Management Services,Large,Programme Expenditure
UK Statistics Family,Office for National Statistics,24/01/2023,IT (Owned) At Cost - Additions,IT Operations,Computacenter (Uk) Limited,254535,"41,585.58",Computers and Peripherals,Large,Programme Expenditure
UK Statistics Family,Office for National Statistics,24/01/2023,"ICT Outsourcing, Maintenance And Support",IT Operations,Computacenter (Uk) Limited,254535,"14,623.96",Computers and Peripherals,Large,Programme Expenditure
UK Statistics Family,Office for National Statistics,24/01/2023,Survey Incentive Vouchers,Survey Management,Sodexo Motivation Solutions U.K. ltd,254541,879.89,Survey Response Incentive Vouchers,Large,Programme Expenditure
UK Statistics Family,Office for National Statistics,24/01/2023,Survey Incentive Vouchers,Survey Management,Sodexo Motivation Solutions U.K. ltd,254541,"1,663.43",Survey Response Incentive Vouchers,Large,Programme Expenditure
UK Statistics Family,Office for National Statistics,24/01/2023,Survey Incentive Vouchers,Survey Management,Sodexo Motivation Solutions U.K. ltd,254541,"45,016.66",Survey Response Incentive Vouchers,Large,Programme Expenditure
UK Statistics Family,Office for National Statistics,24/01/2023,Survey Incentive Vouchers,Survey Management,Sodexo Motivation Solutions U.K. ltd,254541,"5,783.21",Survey Response Incentive Vouchers,Large,Programme Expenditure
UK Statistics Family,Office for National Statistics,24/01/2023,Survey Incentive Vouchers,Best Practice And Impact,Sodexo Motivation Solutions U.K. ltd,254541,64.14,Survey Response Incentive Vouchers,Large,Programme Expenditure
UK Statistics Family,Office for National Statistics,24/01/2023,Survey Incentive Vouchers,Interviewer Support,Sodexo Motivation Solutions U.K. ltd,254541,133.22,Survey Response Incentive Vouchers,Large,Programme Expenditure
UK Statistics Family,Office for National Statistics,24/01/2023,Survey Incentive Vouchers,Survey Management,Sodexo Motivation Solutions U.K. ltd,254541,"4,362.02",Survey Response Incentive Vouchers,Large,Programme Expenditure
UK Statistics Family,Office for National Statistics,24/01/2023,Survey Incentive Vouchers,Social Surveys Division,Sodexo Motivation Solutions U.K. ltd,254541,49.34,Survey Response Incentive Vouchers,Large,Programme Expenditure
UK Statistics Family,Office for National Statistics,24/01/2023,Hosting,CDIO UNGP,Google Cloud EMEA Limited,254548,"38,534.86",Information Management Services,Large,Programme Expenditure
UK Statistics Family,Office for National Statistics,24/01/2023,Postage,REPROGRAPHICS,Pitney Bowes Ltd,254550,"213,260.91",Postage Services,Large,Programme Expenditure
UK Statistics Family,Office for National Statistics,24/01/2023,Travel And Subsistence,Corporate Centre,Corporate Travel Management ,254553,"28,584.28",Travel and Accommodation,SME,Programme Expenditure
UK Statistics Family,Office for National Statistics,24/01/2023,Postage,Survey Processing Centre,DHL Parcel Ltd,254555,"33,697.19",Postage Services,Large,Programme Expenditure
UK Statistics Family,Office for National Statistics,24/01/2023,Exp - Purchase Of Goods And Services Consultants,Business Development,Ipsos MORI,254557,"60,168.00",Consultancy,Large,Programme Expenditure
UK Statistics Family,Office for National Statistics,24/01/2023,Venue Hire,Corporate Centre,Calder World of Travel,254558,"89,457.50",Multiple Venue Hire,SME,Programme Expenditure
UK Statistics Family,Office for National Statistics,24/01/2023,Exp - Purchase Of Goods/Services - Contractors,Digital Media,Certes Computing Ltd,254560,"18,894.76",Information Management Services,SME,Programme Expenditure
UK Statistics Family,Office for National Statistics,24/01/2023,Exp - Purchase Of Goods/Services - Contractors,Data Architecture,Certes Computing Ltd,254560,"8,262.32",Information Management Services,SME,Programme Expenditure
UK Statistics Family,Office for National Statistics,24/01/2023,Exp - Purchase Of Goods/Services - Contractors,DATA ENGINEERING OPERATIONS AND DELIVERY,Certes Computing Ltd,254560,"7,970.11",Information Management Services,SME,Programme Expenditure
UK Statistics Family,Office for National Statistics,25/01/2023,Exp - Purchase Of Goods/Services - Contractors,Testing,La International,254717,"4,988.75",Information Management Services,SME,Programme Expenditure
UK Statistics Family,Office for National Statistics,25/01/2023,Exp - Purchase Of Goods/Services - Contractors,Testing,La International,254717,"3,317.65",Information Management Services,SME,Programme Expenditure
UK Statistics Family,Office for National Statistics,25/01/2023,Exp - Purchase Of Goods/Services - Contractors,Data Architecture,La International,254717,"12,094.74",Information Management Services,SME,Programme Expenditure
UK Statistics Family,Office for National Statistics,25/01/2023,Exp - Purchase Of Goods/Services - Contractors,Data Architecture,La International,254717,"4,281.18",Information Management Services,SME,Programme Expenditure
UK Statistics Family,Office for National Statistics,25/01/2023,Exp - Purchase Of Goods/Services - Contractors,Tech Delivery Next Gen IT And Infrastructure,La International,254717,"6,920.32",Information Management Services,SME,Programme Expenditure
UK Statistics Family,Office for National Statistics,25/01/2023,Exp - Purchase Of Goods/Services - IT Contractual Services,CDIO UNGP,CTS (Cloud Technology Solutions Ltd),254720,"177,019.20",Information Management Services,Large,Programme Expenditure
UK Statistics Family,Office for National Statistics,26/01/2023,Exp - Purchase Of Goods/Services - IT Contractual Services,Digital Publishing,University of Durham,254869,"72,956.80",Statistical Services,Large,Programme Expenditure
UK Statistics Family,Office for National Statistics,26/01/2023,Exp - Purchase Of Goods/Services - IT Contractual Services,CDIO UNGP,CTS (Cloud Technology Solutions Ltd),254875,"75,183.00",Information Management Services,Large,Programme Expenditure
UK Statistics Family,Office for National Statistics,26/01/2023,"ICT Outsourcing, Maintenance And Support",Researcher Support And Data Access ,Equiniti-TopLevel,254881,"27,216.00",Information Management Services,SME,Programme Expenditure
UK Statistics Family,Office for National Statistics,27/01/2023,Survey Incentive Vouchers,Covid Infection Survey,Sodexo Motivation Solutions U.K. ltd,254973,"121,599.00",Survey Response Incentive Vouchers,Large,Programme Expenditure
UK Statistics Family,Office for National Statistics,27/01/2023,Exp - Seconded UK Staff - Basic Salary,FAST STREAM RECHARGES - CABINET OFFICE,Cabinet Office,254978,"151,827.00",Fast Stream Programme Costs,Large,Programme Expenditure
UK Statistics Family,Office for National Statistics,27/01/2023,Rent Payable,Property Darlington,Government Property Agency (GPA),254980,"26,743.87",Rental Charges,Large,Programme Expenditure
UK Statistics Family,Office for National Statistics,27/01/2023,FM Contract Payments,Property Darlington,Government Property Agency (GPA),254980,871.17,Rental Charges,Large,Programme Expenditure
UK Statistics Family,Office for National Statistics,27/01/2023,Rent Payable,IT Operations,Government Property Agency (GPA),254980,"8,474.61",Rental Charges,Large,Programme Expenditure
UK Statistics Family,Office for National Statistics,27/01/2023,Exp - Purchase Of Goods/Services - Incentive Payments,Social Surveys Division,Natcen Social Research,254981,"30,294.60",Survey Response Incentive Vouchers,Large,Programme Expenditure
UK Statistics Family,Office for National Statistics,27/01/2023,Exp - Purchase Of Goods/Services - Contractors,Security Advisory,Certes Computing Ltd,254983,"10,824.53",Information Management Services,SME,Programme Expenditure
UK Statistics Family,Office for National Statistics,27/01/2023,Exp - Purchase Of Goods/Services - Contractors,Data Architecture,Certes Computing Ltd,254983,"10,080.00",Information Management Services,SME,Programme Expenditure
UK Statistics Family,Office for National Statistics,27/01/2023,Exp - Purchase Of Goods/Services - Contractors,CLOUD ARCHITECTURE,Certes Computing Ltd,254983,"10,758.40",Information Management Services,SME,Programme Expenditure
UK Statistics Family,Office for National Statistics,27/01/2023,Exp - Purchase Of Goods/Services - Contractors,Strategy And Architecture,Certes Computing Ltd,254983,"9,000.00",Information Management Services,SME,Programme Expenditure
UK Statistics Family,Office for National Statistics,27/01/2023,Print & Post,REPROGRAPHICS,APS Group,254985,"28,611.65",Print and Post Services,Large,Programme Expenditure
UK Statistics Family,Office for National Statistics,27/01/2023,Exp - Purchase Of Goods And Services Consultants,Security Advisory,Information Security Forum Limited,254986,"26,400.00",Consultancy,Large,Programme Expenditure
UK Statistics Family,Office for National Statistics,03/01/2023,Specialist User Software And Hardware,Learning And Capability,getAbstract AG,30003921,"64,075.00",Software Licenses,SME,Programme Expenditure
UK Statistics Family,Office for National Statistics,04/01/2023,Survey Incentive Vouchers,Covid Infection Survey,Sodexo Motivation Solutions U.K. ltd,30003922,"785,543.83",Survey Response Incentive Vouchers,Large,Programme Expenditure
UK Statistics Family,Office for National Statistics,10/01/2023,Survey Incentive Vouchers,Covid Infection Survey,Sodexo Motivation Solutions U.K. ltd,30003926,"1,163,925.22",Survey Response Incentive Vouchers,Large,Programme Expenditure
UK Statistics Family,Office for National Statistics,12/01/2023,Stationery,Lodgecard,Royal Bank of Scotland,30003936,"1,278.94",Multiple Procurement Card Purchases  - Stationery ,Large,Programme Expenditure
UK Statistics Family,Office for National Statistics,12/01/2023,Other Goods And Services,GPC,Royal Bank of Scotland,30003936,"46,875.94",Multiple Procurement Card Purchases - other goods/services  ,Large,Programme Expenditure
UK Statistics Family,Office for National Statistics,12/01/2023,Travel And Subsistence,Car Hire,Royal Bank of Scotland,30003936,"21,468.56",Multiple Procurement Card Purchases - Vehicle Hire  ,Large,Programme Expenditure
UK Statistics Family,Office for National Statistics,12/01/2023,Survey Incentive Vouchers,Covid Infection Survey,Sodexo Motivation Solutions U.K. ltd,30003937,"1,186,584.41",Survey Response Incentive Vouchers,Large,Programme Expenditure
UK Statistics Family,Office for National Statistics,18/01/2023,Electricity,Property Services,Edf Energy,30003947,"35,196.04",Utility Charges,Large,Programme Expenditure
UK Statistics Family,Office for National Statistics,18/01/2023,Electricity,Property Titchfield,Edf Energy,30003948,"28,883.27",Utility Charges,Large,Programme Expenditure
UK Statistics Family,Office for National Statistics,20/01/2023,Specialist User Software And Hardware,Digital Media,Cloudflare ,30003953,"90,351.01",Software Licenses,Large,Programme Expenditure
UK Statistics Family,Office for National Statistics,20/01/2023,Survey Incentive Vouchers,Covid Infection Survey,Sodexo Motivation Solutions U.K. ltd,30003954,"1,037,419.32",Survey Response Incentive Vouchers,Large,Programme Expenditure
UK Statistics Family,Office for National Statistics,25/01/2023,Surveys,Covid Infection Survey,IQVIA Limited,30003957,"6,000,000.00",Statistical Services,Large,Programme Expenditure
UK Statistics Family,Office for National Statistics,26/01/2023,Survey Incentive Vouchers,Covid Infection Survey,Sodexo Motivation Solutions U.K. ltd,30003958,"1,110,060.15",Survey Response Incentive Vouchers,Large,Programme Expenditure
UK Statistics Family,Office for National Statistics,31/01/2023,IT (Owned) At Cost - Additions,Property Services,Vinci Construction UK Limited,30003961,"218,221.39",Facilities Mangement Services,Large,Programme Expenditure
UK Statistics Family,Office for National Statistics,31/01/2023,Buildings Under Construction,Property Titchfield,Vinci Construction UK Limited,30003961,"56,760.00",Facilities Mangement Services,Large,Programme Expenditure
UK Statistics Family,Office for National Statistics,31/01/2023,Major Works Over 25K,Property Titchfield,Vinci Construction UK Limited,30003961,"54,597.62",Facilities Mangement Services,Large,Programme Expenditure
UK Statistics Family,Office for National Statistics,31/01/2023,FM Contract Payments,Vinci Payments,Vinci Construction UK Limited,30003961,"289,668.97",Facilities Mangement Services,Large,Programme Expenditure
UK Statistics Family,Office for National Statistics,31/01/2023,Training & Development,UKSA,Cabinet Office,30003962,"11,880.00",Training and Educational Services,Large,Programme Expenditure
UK Statistics Family,Office for National Statistics,31/01/2023,Training & Development,STRATEGY SYNTHESIS AND CO-ORDINATION,Cabinet Office,30003962,"11,880.00",Training and Educational Services,Large,Programme Expenditure
UK Statistics Family,Office for National Statistics,31/01/2023,Training & Development,Learning And Capability,Cabinet Office,30003962,"5,040.00",Training and Educational Services,Large,Programme Expenditure
UK Statistics Family,Office for National Statistics,31/01/2023,Training & Development,Data Science Campus,Cabinet Office,30003962,"11,880.00",Training and Educational Services,Large,Programme Expenditure
UK Statistics Family,Office for National Statistics,31/01/2023,Training & Development,Prices Division,Cabinet Office,30003962,"11,880.00",Training and Educational Services,Large,Programme Expenditure
UK Statistics Family,Office for National Statistics,31/01/2023,Exp - Purchase Of Goods/Services - Incentive Payments,Survey Management,Banner Group Ltd,30003964,"112,320.00",Survey Response Incentive Items,SME,Programme Expenditure
,,,,,,,"23,755,171.33",,,
